bitfinex-derivatives/quotes_ETHF0:USTF0_20220108
["timestamp","ask_amount","ask_price","bid_price","bid_amount"]
[1641636334085,1.04485037,3232.8,3232.5,0.640787]
[1641636334280,1.04485037,3232.8,3232.6,1.764788]
[1641636334482,1.04485037,3232.8,3232.6,0.264788]
[1641636335384,1.04485037,3233.2,3232.7,2.00479]
[1641636335681,1.04485037,3233.2,3232.8,0.264788]
[1641636335882,1.04485037,3233.2,3232.8,1.075688]
[1641636336084,3.5115092,3233.1,3232.8,1.075688]
[1641636336682,1.04485037,3233.2,3232.8,2.81742705]
[1641636336882,2.90923621,3233.3,3232.8,2.81742705]
[1641636337283,2.90923621,3233.3,3232.8,2.55263905]
[1641636337483,3.51153743,3233.2,3232.8,2.55263905]
[1641636337882,3.51153743,3233.2,3232.9,0.44605241]
[1641636338583,3.51153743,3233.2,3233.0,0.264788]
[1641636338984,3.59075925,3233.4,3233.0,0.264788]
[1641636339185,3.59075925,3233.4,3232.9,0.44605241]
[1641636339786,3.5114418,3233.3,3232.9,0.44605241]
[1641636340488,3.59075925,3233.4,3233.1,0.44605241]
[1641636341087,3.59075925,3233.4,3233.2,0.640787]
[1641636342786,1.60238904,3233.3,3233.2,0.640787]
[1641636342986,5.11377839,3233.3,3233.2,0.640787]
[1641636343187,1.60238904,3233.3,3233.2,0.640787]
[1641636343386,5.11377839,3233.3,3233.2,0.640787]
[1641636343586,5.11377839,3233.3,3232.8,0.8109]
[1641636343789,5.11377839,3233.3,3232.8,0.640787]
[1641636344086,1.60238904,3233.3,3232.8,0.640787]
[1641636344285,1.60238904,3233.3,3232.8,0.905575]
[1641636344687,1.60238904,3233.3,3232.9,0.44751696]
[1641636344888,1.60238904,3233.3,3232.9,1.17151696]
[1641636345687,1.60238904,3233.3,3233.0,0.44751696]
[1641636348590,1.60238904,3233.3,3233.1,0.264788]
[1641636349491,1.60238904,3233.3,3233.0,0.44751696]
[1641636349891,1.60238904,3233.3,3232.9,0.264788]
[1641636350893,1.60238904,3233.3,3233.0,0.45680112]
[1641636351500,1.60238904,3233.3,3233.2,2.00479]
[1641636351693,1.04485037,3233.9,3233.2,2.00479]
[1641636351896,1.04485037,3233.9,3233.3,0.264788]
[1641636352095,1.04485037,3233.9,3233.5,1.5]
[1641636352295,1.04485037,3233.9,3233.6,0.640787]
[1641636352695,1.04485037,3233.9,3233.7,0.264788]
[1641636352895,1.04485037,3233.9,3233.7,1.077088]
[1641636353497,1.04485037,3233.9,3233.8,2.00479]
[1641636353697,1.91400843,3234.1,3233.8,2.00479]
[1641636353898,3.41400843,3234.1,3233.8,2.00479]
[1641636354100,1.5,3233.9,3233.6,0.45680112]
[1641636354298,3.51078951,3234.0,3233.6,0.45680112]
[1641636354497,8.45829951,3234.0,3233.6,0.45680112]
[1641636354697,3.51078951,3234.0,3233.6,0.45680112]
[1641636354897,3.51078951,3234.0,3233.2,3.30047664]
[1641636355097,3.51078951,3233.9,3233.3,0.905575]
[1641636355299,1.9001257,3234.1,3233.4,0.77520938]
[1641636355598,0.78695596,3234.1,3233.7,1.54572406]
[1641636355799,0.78695596,3234.1,3233.7,3.04572406]
[1641636356099,0.78695596,3234.1,3233.8,0.264788]
[1641636356998,0.4657,3234.2,3233.8,0.264788]
[1641636357600,0.4657,3234.2,3233.8,2.269578]
[1641636366114,0.4657,3234.2,3233.8,2.00479]
[1641636367619,0.92769589,3233.9,3233.8,2.00479]
[1641636374824,0.4657,3234.2,3233.8,2.00479]
[1641636375027,0.4657,3234.2,3233.9,0.264788]
[1641636375424,0.4657,3234.2,3234.0,0.640787]
[1641636375825,0.4657,3234.2,3234.1,0.264788]
[1641636376425,0.4657,3234.2,3234.0,0.640787]
[1641636377127,0.4657,3234.2,3233.9,2.00479]
[1641636377726,0.92767121,3234.0,3233.9,2.00479]
[1641636379229,0.92767121,3234.0,3233.9,2.269578]
[1641636379729,0.4657,3234.2,3233.9,2.269578]
[1641636386331,0.4657,3234.2,3233.9,2.00479]
[1641636388833,0.4657,3234.2,3234.0,0.264788]
[1641636389732,0.4657,3234.2,3233.9,2.00479]
[1641636390134,0.4657,3234.2,3234.0,0.264788]
[1641636390338,0.4657,3234.2,3234.0,1.109788]
[1641636390736,0.78695596,3234.7,3234.1,1.5]
[1641636390934,0.78695596,3234.7,3234.2,0.264788]
[1641636391835,0.78695596,3234.7,3234.4,2.00479]
[1641636392134,1.04485037,3234.9,3234.4,2.00479]
[1641636392335,1.11282898,3235.0,3234.4,2.00479]
[1641636392737,3.50998365,3234.9,3234.4,2.00479]
[1641636392936,3.50998365,3234.9,3234.5,0.640787]
[1641636393336,4.29693961,3234.9,3234.5,0.640787]
[1641636393534,0.78695596,3234.9,3234.5,0.640787]
[1641636393936,3.50998365,3234.8,3234.5,0.640787]
[1641636394339,4.29693961,3234.9,3234.5,0.640787]
[1641636394537,0.78695596,3234.9,3234.5,0.640787]
[1641636395337,3.51002349,3234.8,3234.5,0.640787]
[1641636396839,3.51002349,3234.8,3234.6,0.264788]
[1641636398542,3.51002349,3234.9,3234.6,0.264788]
[1641636398742,1.89978494,3235.0,3234.6,0.264788]
[1641636398943,1.89978494,3235.0,3234.5,0.640787]
[1641636399142,3.50991595,3234.9,3234.5,0.640787]
[1641636399743,3.50991595,3234.9,3234.4,2.00479]
[1641636399946,2.54622743,3234.6,3234.4,2.00479]
[1641636400243,0.47780748,3234.3,3233.9,3.30047664]
[1641636400444,3.50991595,3234.5,3233.9,3.30047664]
[1641636400643,3.50991595,3234.5,3234.0,0.640787]
[1641636401144,3.50991595,3234.7,3234.0,0.640787]
[1641636401344,2.97865165,3234.8,3234.0,0.640787]
[1641636401645,3.51029618,3234.6,3234.0,0.640787]
[1641636401844,4.29725214,3234.7,3234.0,1.38071125]
[1641636402044,0.78695596,3234.7,3234.0,1.38071125]
[1641636402846,0.78695596,3234.8,3234.1,0.47513625]
[1641636403645,3.51004316,3234.7,3234.1,0.47513625]
[1641636403845,3.51004316,3234.7,3234.1,0.73992425]
[1641636404949,3.51004316,3234.7,3234.2,0.47513625]
[1641636405750,5.10283066,3234.7,3234.2,0.47513625]
[1641636405950,2.37974346,3234.7,3234.2,0.47513625]
[1641636406149,0.78695596,3234.7,3234.3,0.264788]
[1641636406348,3.51004316,3234.6,3234.3,0.859388]
[1641636406549,0.78695596,3234.7,3234.3,0.859388]
[1641636407250,3.50996646,3234.6,3234.3,0.5946]
[1641636407452,1.17994784,3234.4,3234.2,0.47513625]
[1641636408553,1.17994784,3234.4,3234.1,0.47513625]
[1641636409653,3.51031369,3234.3,3234.1,0.47513625]
[1641636410253,1.17994784,3234.4,3234.1,0.47513625]
[1641636410653,3.51027242,3234.3,3234.1,0.47513625]
[1641636411753,1.17994784,3234.4,3234.1,0.47513625]
[1641636411952,0.78695596,3234.5,3234.1,0.47513625]
[1641636412153,3.51023895,3234.3,3234.1,0.47513625]
[1641636412353,3.51023895,3234.4,3234.1,0.47513625]
[1641636415757,3.51023895,3234.4,3234.3,0.77623761]
[1641636416159,4.43776927,3234.4,3234.3,0.77623761]
[1641636418761,4.43776927,3234.4,3234.1,0.47513625]
[1641636419363,0.92753032,3234.4,3234.1,0.47513625]
[1641636420063,3.51023036,3234.3,3234.1,0.47513625]
[1641636425376,6.83401408,3234.3,3234.1,0.47513625]
[1641636425876,3.51023036,3234.2,3234.1,0.47513625]
[1641636427682,4.00369164,3234.2,3233.6,2.203326]
[1641636427880,1.5,3234.1,3233.5,2.47992625]
[1641636428280,5.01023036,3234.1,3233.5,2.47992625]
[1641636428681,3.51023036,3234.0,3233.5,2.47992625]
[1641636428884,0.9277194,3233.8,3233.6,0.47513625]
[1641636429183,3.51023036,3233.7,3233.6,0.47513625]
[1641636429381,0.45266941,3233.5,3233.3,1.29568664]
[1641636429583,1.13726941,3233.5,3233.3,1.29568664]
[1641636429781,0.6846,3233.5,3233.3,1.29568664]
[1641636430587,1.5,3233.4,3233.3,1.29568664]
[1641636430785,0.6846,3233.5,3233.2,1.29568664]
[1641636432091,0.6846,3233.5,3233.0,6.29568664]
[1641636433592,6.2979731,3233.7,3233.1,0.640787]
[1641636434392,3.5110976,3233.6,3233.0,6.29568664]
[1641636434993,2.57354105,3233.2,3233.0,6.29568664]
[1641636436296,2.57354105,3233.2,3233.1,1.29568664]
[1641636436701,0.7883931,3233.9,3233.2,13.33]
[1641636436900,0.7883931,3233.9,3233.6,1.5]
[1641636437096,0.7883931,3233.9,3233.6,15.7178]
[1641636437295,0.7883931,3233.9,3233.7,0.264788]
[1641636437696,0.7883931,3233.9,3233.7,2.82279901]
[1641636438103,0.7883931,3233.9,3233.8,2.645577]
[1641636438503,1.04485037,3234.2,3233.8,2.645577]
[1641636438700,0.7883931,3234.6,3233.9,0.264788]
[1641636438901,31.8864,3234.5,3233.9,0.264788]
[1641636439501,0.7883931,3234.6,3233.9,0.264788]
[1641636440204,2.00479,3234.7,3234.4,0.77509644]
[1641636440409,2.00479,3234.7,3234.4,1.44329644]
[1641636441007,2.00479,3234.7,3234.4,1.70808444]
[1641636441207,2.00479,3234.7,3234.4,2.34887144]
[1641636441808,2.00479,3234.7,3234.5,0.77509644]
[1641636442710,2.00479,3234.7,3234.4,2.34887144]
[1641636444911,2.00479,3234.7,3234.5,0.77509644]
[1641636447014,2.00479,3234.7,3234.6,0.264788]
[1641636449523,2.00479,3234.7,3234.5,0.77509644]
[1641636449723,2.00479,3234.7,3234.6,0.264788]
[1641636451024,2.00479,3234.7,3234.5,1.26478157]
[1641636451225,2.00479,3234.7,3234.5,0.77509644]
[1641636451928,2.7931831,3235.0,3234.5,0.77509644]
[1641636451929,0.7883931,3235.0,3234.6,13.33]
[1641636452126,0.7883931,3235.0,3234.9,15.33479]
[1641636452326,0.7883931,3235.0,3234.9,15.599578]
[1641636452927,0.7883931,3235.0,3234.9,16.81530565]
[1641636453328,1.04485037,3235.2,3234.9,17.30495152]
[1641636453528,0.7883931,3235.7,3234.9,17.30495152]
[1641636453727,0.7883931,3235.7,3234.9,3.97495152]
[1641636455230,3.83803347,3235.9,3235.3,0.77336226]
[1641636455530,2.7931831,3235.9,3235.4,0.905575]
[1641636456331,2.00479,3235.9,3235.4,0.905575]
[1641636457834,3.50479,3235.9,3235.4,0.905575]
[1641636458634,3.50479,3235.9,3235.4,0.640787]
[1641636459034,3.50915127,3235.8,3235.4,0.640787]
[1641636459234,3.50915127,3235.8,3235.1,0.77336226]
[1641636459235,1.5,3235.6,3235.1,0.77336226]
[1641636459434,3.9464601,3235.6,3235.1,0.77336226]
[1641636460135,3.9464601,3235.6,3235.0,0.77336226]
[1641636460634,1.5,3235.5,3235.0,0.77336226]
[1641636461035,6.30475767,3235.2,3235.0,0.77336226]
[1641636461236,6.30475767,3235.2,3234.8,0.77336226]
[1641636461436,1.5,3235.0,3234.8,0.77336226]
[1641636461935,4.80475767,3235.2,3234.8,0.77336226]
[1641636462137,2.00479,3235.1,3234.8,0.77336226]
[1641636462538,3.14032265,3234.8,3234.3,3.30047664]
[1641636462737,1.5,3235.0,3234.4,0.7729104]
[1641636463637,2.00479,3235.1,3234.4,1.0376984]
[1641636463839,0.7883931,3235.3,3234.5,13.33]
[1641636464036,0.7883931,3235.3,3234.8,1.5]
[1641636464237,0.7883931,3235.3,3235.1,2.00479]
[1641636464437,0.7883931,3235.3,3235.1,2.66919]
[1641636465237,0.7883931,3235.3,3235.2,0.264788]
[1641636465437,1.04485037,3235.5,3235.2,0.264788]
[1641636465838,2.00479,3235.9,3235.2,0.264788]
[1641636466037,2.00479,3235.9,3235.3,0.640787]
[1641636466439,2.00479,3235.9,3235.3,0.905575]
[1641636467540,3.50479,3235.9,3235.3,0.905575]
[1641636467940,3.50479,3235.9,3235.3,0.640787]
[1641636468141,2.83072655,3235.7,3235.3,0.640787]
[1641636468541,2.83072655,3235.7,3235.1,2.00479]
[1641636468542,2.80284069,3235.4,3235.1,2.00479]
[1641636468741,2.80284069,3235.4,3234.3,4.84594509]
[1641636468942,1.5,3235.1,3234.3,4.84594509]
[1641636469142,2.80284069,3235.4,3234.3,4.84594509]
[1641636469341,4.30284069,3235.4,3234.3,4.84594509]
[1641636469542,4.30284069,3235.4,3234.3,3.55025845]
[1641636469943,1.5,3235.1,3234.3,3.55025845]
[1641636470141,3.74718797,3235.0,3234.3,3.55025845]
[1641636470345,3.74718797,3235.0,3234.4,0.905575]
[1641636470543,3.74718797,3235.0,3234.4,1.671675]
[1641636471043,3.74718797,3235.0,3234.4,2.16499739]
[1641636471844,2.00479,3235.3,3234.5,17.20013105]
[1641636472042,2.00479,3235.3,3234.6,0.264788]
[1641636472644,2.00479,3235.3,3234.6,13.594788]
[1641636473042,2.00479,3235.3,3234.9,14.87514608]
[1641636473243,2.00479,3235.3,3235.1,13.33]
[1641636473443,2.00479,3235.3,3235.2,0.640787]
[1641636473643,1.04485037,3235.8,3235.2,0.640787]
[1641636473843,67.20125037,3236.3,3235.2,1.7180588]
[1641636474246,2.00479,3236.0,3235.2,1.7180588]
[1641636476349,3.50479,3236.0,3235.2,1.7180588]
[1641636476547,2.00479,3236.0,3235.2,1.7180588]
[1641636476746,2.00479,3236.0,3235.2,0.905575]
[1641636477147,2.93187475,3236.0,3235.2,0.905575]
[1641636478249,4.43187475,3236.0,3235.2,0.905575]
[1641636478446,2.93187475,3236.0,3235.2,0.905575]
[1641636482051,3.50479,3235.9,3235.2,0.905575]
[1641636483054,2.00479,3235.9,3235.2,0.905575]
[1641636486757,0.92717129,3235.7,3235.2,0.905575]
[1641636489560,0.92717129,3235.7,3235.2,2.03506011]
[1641636490959,0.92717129,3235.7,3235.2,2.80586882]
[1641636491962,0.92717129,3235.7,3235.2,2.03506011]
[1641636494163,0.92717129,3235.7,3235.2,2.80586882]
[1641636495263,0.92717129,3235.7,3235.3,1.26398983]
[1641636495466,0.92717129,3235.7,3235.4,0.264788]
[1641636496578,0.92717129,3235.7,3235.4,1.03559671]
[1641636497275,0.92717129,3235.7,3235.4,1.52877369]
[1641636498279,0.92717129,3235.7,3235.5,1.26398569]
[1641636498677,2.00479,3235.9,3235.6,0.264788]
[1641636498880,2.00479,3235.9,3235.6,1.80962854]
[1641636500681,2.00479,3235.9,3235.7,1.26398569]
[1641636502585,2.00479,3235.9,3235.7,0.77080871]
[1641636502786,2.00479,3235.9,3235.6,0.77080871]
[1641636502986,2.61859,3235.9,3235.6,0.77080871]
[1641636503987,6.18107529,3235.7,3235.6,0.77080871]
[1641636504187,6.18107529,3235.7,3235.4,0.77080871]
[1641636505290,6.18107529,3235.7,3235.3,0.77080871]
[1641636505889,3.83286429,3235.6,3235.3,0.77080871]
[1641636506091,1.5,3235.4,3235.3,0.77080871]
[1641636506293,1.5,3235.4,3235.3,8.71e-06]
[1641636506492,2.53263534,3235.0,3234.9,6.29568664]
[1641636506793,5.37422534,3235.0,3234.9,6.29568664]
[1641636506994,2.84159,3235.0,3234.9,6.29568664]
[1641636507993,2.84159,3235.0,3234.9,5.0]
[1641636509291,4.34159,3235.0,3234.9,5.0]
[1641636510093,2.84159,3235.0,3234.9,5.0]
[1641636510296,2.00479,3235.0,3234.9,5.0]
[1641636528424,2.00479,3235.0,3234.7,0.77675723]
[1641636528624,1.5030022,3234.8,3234.3,1.29568664]
[1641636528925,1.5030022,3234.8,3234.2,1.29568664]
[1641636529923,1.5030022,3234.8,3234.2,1.56047464]
[1641636530731,1.5030022,3234.8,3234.2,0.264788]
[1641636531334,1.5030022,3234.8,3234.2,0.905575]
[1641636531733,1.5030022,3234.8,3234.3,0.49331444]
[1641636531933,2.51755566,3235.5,3234.4,0.264788]
[1641636532533,1.26630226,3235.3,3234.4,0.264788]
[1641636532834,1.26630226,3235.3,3234.7,2.00479]
[1641636533234,1.26630226,3235.3,3234.8,0.264788]
[1641636534337,1.26630226,3235.3,3234.8,0.75810244]
[1641636534537,1.26630226,3235.3,3234.8,1.39888944]
[1641636535438,1.26630226,3235.3,3234.9,0.49331444]
[1641636535638,1.26630226,3235.3,3235.0,0.264788]
[1641636535940,1.26630226,3235.3,3235.0,0.944988]
[1641636536339,1.26630226,3235.3,3235.0,1.43830244]
[1641636537242,1.26630226,3235.3,3235.0,0.944988]
[1641636537640,2.00479,3235.5,3235.0,0.944988]
[1641636538644,2.00479,3235.5,3235.1,0.48916904]
[1641636539245,2.00479,3235.5,3235.2,0.264788]
[1641636539646,2.00479,3235.5,3235.1,0.48916904]
[1641636540648,1.03958803,3235.3,3235.1,0.48916904]
[1641636541648,1.03958803,3235.3,3235.2,0.264788]
[1641636542747,1.03958803,3235.3,3235.1,0.48916904]
[1641636543249,1.03958803,3235.3,3235.2,0.48916904]
[1641636545251,1.03958803,3235.3,3235.1,0.48916904]
[1641636546553,1.03958803,3235.3,3234.9,0.48916904]
[1641636546753,1.03958803,3235.3,3234.9,0.75395704]
[1641636548055,1.03958803,3235.3,3235.0,0.48916904]
[1641636548256,1.03958803,3235.3,3235.0,1.15636904]
[1641636548457,1.03958803,3235.3,3235.1,0.264788]
[1641636549356,1.03958803,3235.3,3235.1,1.53001407]
[1641636549958,2.00479,3235.5,3235.1,1.53001407]
[1641636550159,2.00479,3235.5,3235.2,3.04497181]
[1641636550357,2.00479,3235.5,3235.3,0.264788]
[1641636552060,2.00479,3235.5,3235.4,0.48916904]
[1641636554565,2.00479,3235.5,3235.4,1.26494164]
[1641636555566,2.00479,3235.5,3235.4,0.7757726]
[1641636556765,2.00479,3235.5,3235.3,1.0405606]
[1641636557773,2.00479,3235.5,3235.4,0.7757726]
[1641636557968,2.00479,3235.5,3235.4,1.26494164]
[1641636558668,2.00479,3235.5,3235.4,0.48916904]
[1641636560069,2.00479,3235.5,3235.4,1.26515161]
[1641636560971,2.00479,3235.5,3235.4,0.77598257]
[1641636561169,2.00479,3235.5,3235.3,1.04077057]
[1641636561371,2.00479,3235.5,3235.3,0.77598257]
[1641636562171,2.00479,3235.5,3235.4,1.26553677]
[1641636563172,2.00479,3235.5,3235.3,0.77598257]
[1641636563372,2.96780293,3235.3,3235.2,0.4895542]
[1641636563779,2.00479,3235.5,3235.2,0.4895542]
[1641636566174,2.00479,3235.5,3235.2,1.4144542]
[1641636567477,2.00479,3235.5,3235.3,0.4895542]
[1641636568481,2.00479,3235.5,3235.2,0.9249]
[1641636568881,5.90067982,3235.5,3235.2,0.9249]
[1641636569481,5.90067982,3235.5,3235.3,0.48416101]
[1641636570384,2.00479,3235.5,3235.3,0.48416101]
[1641636570986,0.92726836,3235.4,3235.3,0.48416101]
[1641636572486,0.92726836,3235.4,3235.2,0.48416101]
[1641636576893,0.92726836,3235.4,3235.3,0.264788]
[1641636577093,0.92726836,3235.4,3235.3,1.011588]
[1641636577392,2.00479,3235.5,3235.3,1.011588]
[1641636578695,2.00479,3235.5,3235.4,0.48416101]
[1641636587106,2.6472264,3235.2,3235.1,1.29568664]
[1641636587508,2.65269,3235.5,3235.1,1.29568664]
[1641636588506,2.65269,3235.5,3235.3,0.7762438]
[1641636589506,4.9401005,3235.5,3234.8,1.29568664]
[1641636589706,4.0,3235.1,3234.8,1.29568664]
[1641636590808,1.5,3234.9,3234.6,1.54546002]
[1641636591008,1.5,3234.7,3234.2,0.65760808]
[1641636591209,11.06617084,3234.4,3233.7,1.11359035]
[1641636591509,2.00479,3233.8,3233.7,1.11359035]
[1641636591707,2.80079,3233.8,3233.7,1.11359035]
[1641636592906,2.80079,3233.8,3233.5,3.17838731]
[1641636593308,2.80079,3233.8,3232.9,2.00479]
[1641636593608,2.00479,3233.4,3232.9,2.00479]
[1641636594810,26.66659444,3233.0,3232.9,2.00479]
[1641636595010,27.47369444,3233.0,3232.9,2.00479]
[1641636596211,25.36834256,3233.0,3232.9,2.00479]
[1641636597412,25.36834256,3233.0,3232.4,1.54637661]
[1641636597611,27.37313256,3233.0,3232.4,1.54637661]
[1641636598011,27.37313256,3233.0,3232.3,0.5178874]
[1641636598211,4.0,3232.9,3232.3,0.5178874]
[1641636600716,5.5,3232.9,3232.3,0.5178874]
[1641636600918,7.42402781,3232.8,3232.3,0.5178874]
[1641636601118,12.37360381,3232.8,3232.3,0.5178874]
[1641636602418,12.37360381,3232.8,3232.3,0.7826754]
[1641636602920,28.57082256,3233.0,3232.4,0.640787]
[1641636603120,4.00958,3233.0,3232.4,1.436887]
[1641636603320,4.00958,3233.0,3232.5,0.264788]
[1641636605323,8.96916657,3233.5,3232.6,1.5]
[1641636605623,2.00479,3233.5,3232.8,2.00479]
[1641636605821,2.00479,3233.5,3232.9,0.264788]
[1641636606622,2.00479,3233.5,3233.0,1.5]
[1641636606823,2.00479,3233.5,3233.1,0.905575]
[1641636607023,2.00479,3233.5,3233.1,1.769175]
[1641636607426,2.00479,3233.5,3233.1,1.128388]
[1641636609025,2.00479,3233.5,3233.2,0.640787]
[1641636610226,2.00479,3233.5,3233.1,1.128388]
[1641636611030,2.00479,3233.5,3233.2,0.640787]
[1641636611427,2.00479,3233.5,3233.3,0.264788]
[1641636613928,2.00479,3233.5,3233.2,0.640787]
[1641636616839,2.00479,3233.5,3233.2,0.905575]
[1641636620044,2.00479,3233.5,3233.0,2.57901375]
[1641636620443,1.01770197,3233.2,3233.0,1.03293121]
[1641636620645,1.01770197,3233.2,3232.9,0.77408389]
[1641636621645,2.00479,3233.0,3232.9,0.77408389]
[1641636622344,2.00479,3233.0,3232.8,0.640787]
[1641636623244,1.49630901,3232.8,3232.7,0.264788]
[1641636623545,2.59290862,3233.0,3232.6,0.77408389]
[1641636625349,2.59290862,3233.0,3232.6,1.14807289]
[1641636625548,2.59290862,3233.0,3232.6,1.41286089]
[1641636626149,2.59290862,3233.0,3232.6,1.03887189]
[1641636626350,2.59290862,3233.0,3232.6,0.264788]
[1641636626750,5.70089477,3233.0,3232.5,0.77408389]
[1641636628451,5.70089477,3233.0,3232.3,1.29197129]
[1641636628852,4.50999798,3232.5,3232.3,1.29197129]
[1641636629056,5.14219798,3232.5,3232.3,1.29197129]
[1641636630856,5.14219798,3232.5,3232.3,0.5178874]
[1641636631057,4.50999798,3232.5,3232.3,0.5178874]
[1641636631256,4.50999798,3232.5,3232.3,0.7826754]
[1641636632060,4.50999798,3232.5,3232.3,1.55675929]
[1641636632663,4.50999798,3232.5,3232.3,3.05675929]
[1641636633061,4.50999798,3232.5,3232.4,1.14299768]
[1641636633260,4.50999798,3232.5,3232.4,2.02429768]
[1641636633960,5.06010777,3233.0,3232.4,2.02429768]
[1641636634163,5.06010777,3233.0,3232.5,0.264788]
[1641636634565,5.70089477,3233.0,3232.5,3.07219679]
[1641636634762,5.70089477,3233.0,3232.5,0.264788]
[1641636635165,5.06010777,3233.0,3232.5,0.264788]
[1641636635363,5.06010777,3233.0,3232.6,0.77643203]
[1641636635565,5.06010777,3233.0,3232.6,1.14534582]
[1641636635764,5.06010777,3233.0,3232.7,0.264788]
[1641636636766,5.06010777,3233.0,3232.7,1.04122003]
[1641636637567,5.06010777,3233.0,3232.7,0.264788]
[1641636641973,5.06010777,3233.0,3232.8,0.640787]
[1641636642171,5.06010777,3233.0,3232.9,0.264788]
[1641636645375,5.06010777,3233.0,3232.9,0.63450994]
[1641636648475,2.95456286,3233.0,3232.9,0.63450994]
[1641636648875,37.10984715,3233.1,3232.9,0.63450994]
[1641636649275,37.75063415,3233.1,3232.9,1.92882519]
[1641636649878,37.10984715,3233.1,3232.9,1.92882519]
[1641636650378,37.10984715,3233.1,3233.0,0.36972194]
[1641636652686,37.10984715,3233.1,3233.0,1.66403719]
[1641636652884,37.18716715,3233.1,3233.0,1.66403719]
[1641636654785,37.10984715,3233.1,3233.0,1.66403719]
[1641636656987,37.10984715,3233.1,3233.0,0.36972194]
[1641636657988,37.99924715,3233.1,3233.0,0.36972194]
[1641636659191,37.99924715,3233.1,3232.9,1.29648387]
[1641636660190,37.99924715,3233.1,3232.9,1.56127187]
[1641636660590,37.99924715,3233.1,3232.9,0.63450994]
[1641636661392,37.99924715,3233.1,3233.0,0.36972194]
[1641636662696,37.10984715,3233.1,3233.0,0.36972194]
[1641636666002,0.640787,3233.3,3233.0,0.36972194]
[1641636666198,6.58188928,3233.5,3233.0,0.36972194]
[1641636666399,7.22267628,3233.5,3233.0,0.36972194]
[1641636666600,6.58188928,3233.5,3233.1,0.264788]
[1641636666799,0.78423095,3233.7,3233.1,0.264788]
[1641636667099,0.78423095,3233.7,3233.3,1.5459463]
[1641636667400,1.04485037,3233.9,3233.6,3.04580052]
[1641636667600,1.04485037,3233.9,3233.8,1.5]
[1641636667800,1.04485037,3233.9,3233.8,1.764788]
[1641636668001,1.04485037,3233.9,3233.8,3.769578]
[1641636668602,2.61642715,3234.4,3233.8,3.769578]
[1641636668807,1.04485037,3234.4,3234.0,1.5]
[1641636669007,1.04485037,3234.4,3234.1,0.264788]
[1641636669404,1.04485037,3234.4,3234.1,0.905575]
[1641636670807,0.49336599,3234.6,3234.1,1.27529694]
[1641636671906,3.04964037,3234.7,3234.1,1.27529694]
[1641636672106,2.00479,3234.7,3234.2,0.36972194]
[1641636672506,2.645577,3234.7,3234.2,0.36972194]
[1641636673007,2.645577,3234.7,3234.3,0.36972194]
[1641636674109,2.645577,3234.7,3234.1,0.640787]
[1641636674310,0.92752075,3234.5,3234.1,0.640787]
[1641636675913,0.92754123,3234.4,3234.1,0.640787]
[1641636677417,0.92754123,3234.4,3234.2,0.38840147]
[1641636678918,0.53926669,3234.0,3233.9,1.06697534]
[1641636679120,0.92752075,3234.5,3233.9,1.33176334]
[1641636679619,0.640787,3234.4,3233.9,1.33176334]
[1641636679819,0.640787,3234.4,3233.9,1.06697534]
[1641636681924,0.92752075,3234.5,3233.9,1.33176334]
[1641636682323,1.56830775,3234.5,3233.9,1.33176334]
[1641636684425,4.81954522,3234.1,3233.9,1.33176334]
[1641636685228,4.81954522,3234.1,3233.9,1.06697534]
[1641636689636,4.81954522,3234.1,3233.8,2.00479]
[1641636689834,5.70594522,3234.1,3233.8,2.00479]
[1641636691336,4.18009436,3233.7,3233.6,2.00479]
[1641636691537,0.8864,3234.1,3233.6,2.00479]
[1641636692835,2.3864,3234.1,3233.6,2.00479]
[1641636694239,6.3864,3234.1,3233.6,2.00479]
[1641636694937,6.3864,3234.1,3233.1,1.29681155]
[1641636695138,4.947663,3234.0,3233.1,1.29681155]
[1641636696440,2.00479,3233.7,3233.0,1.95477689]
[1641636696641,2.00479,3233.7,3233.1,0.905575]
[1641636696841,2.20616403,3233.6,3233.1,0.905575]
[1641636697644,2.20616403,3233.6,3233.1,0.640787]
[1641636697841,1.5574678,3233.4,3233.0,1.29681155]
[1641636698043,2.2119678,3233.4,3233.0,1.29681155]
[1641636699244,2.2119678,3233.4,3233.0,1.6865534]
[1641636702144,2.2119678,3233.4,3233.1,1.29681155]
[1641636703645,0.6545,3233.4,3233.0,0.12190361]
[1641636703847,0.640787,3233.6,3233.0,0.12190361]
[1641636704347,0.640787,3233.6,3233.0,0.38669161]
[1641636704547,2.00479,3233.7,3233.1,0.640787]
[1641636704948,2.00479,3233.7,3233.2,0.264788]
[1641636707949,2.00479,3233.7,3233.2,1.072888]
[1641636709250,2.71997274,3233.6,3233.2,1.072888]
[1641636710450,2.71997274,3233.6,3233.3,2.00479]
[1641636710650,2.71997274,3233.6,3233.4,0.264788]
[1641636711250,2.71997274,3233.6,3233.3,2.00479]
[1641636713450,2.71997274,3233.6,3233.3,3.31585662]
[1641636713854,2.71997274,3233.6,3233.3,3.58064462]
[1641636714553,2.71997274,3233.6,3233.3,2.269578]
[1641636714752,2.71997274,3233.6,3233.3,2.00479]
[1641636717563,2.71997274,3233.6,3233.3,2.645577]
[1641636718367,2.71997274,3233.6,3233.3,3.95664362]
[1641636718566,2.71997274,3233.6,3233.3,3.31585662]
[1641636721671,2.71997274,3233.6,3233.4,1.31106662]
[1641636724371,2.71997274,3233.6,3233.4,1.69170157]
[1641636725172,2.71997274,3233.6,3233.4,0.38063495]
[1641636725375,2.71997274,3233.6,3233.4,0.04048336]
[1641636725974,2.71997274,3233.6,3233.3,2.00479]
[1641636728378,2.71997274,3233.6,3233.3,2.645577]
[1641636728875,2.71997274,3233.6,3233.3,2.910365]
[1641636729478,2.00479,3233.7,3233.3,2.910365]
[1641636729678,0.7866195,3234.1,3233.3,5.2779113]
[1641636730282,0.4578,3234.2,3233.3,5.2779113]
[1641636730283,1.2444195,3234.2,3233.3,5.2779113]
[1641636730680,1.2444195,3234.2,3233.9,2.00479]
[1641636730882,0.640787,3234.1,3233.9,2.00479]
[1641636731982,0.4578,3234.2,3234.0,0.640787]
[1641636732180,0.4578,3234.2,3234.0,1.542687]
[1641636732581,0.7866195,3234.4,3234.0,1.542687]
[1641636732987,0.7866195,3234.4,3234.1,0.264788]
[1641636733987,0.640787,3234.5,3234.1,0.264788]
[1641636734386,0.640787,3234.5,3234.0,3.08829878]
[1641636735188,0.640787,3234.5,3234.1,1.31267283]
[1641636735991,0.640787,3234.5,3234.0,1.95345983]
[1641636736391,4.38169674,3234.6,3234.0,1.95345983]
[1641636736691,5.02248374,3234.6,3234.0,1.95345983]